[Event "CZE Extraliga 2019-20"]
[Site "Czech Republic"]
[Date "2019.12.01"]
[Round "4.1"]
[White "Movsesian, Sergei"]
[Black "Michalik, Peter"]
[Result "1/2-1/2"]
[ECO "C50"]
[WhiteElo "2654"]
[BlackElo "2575"]
[Annotator "ChessBase"]
[PlyCount "75"]
[EventDate "2019.09.15"]
[EventType "team-tourn"]
[EventCountry "CZE"]
[SourceTitle "playchess.com"]
[Source "ChessBase"]
[SourceQuality "1"]
[WhiteTeam "Pardubice  "]
[BlackTeam "Siesta Solution Unichess"]
[TimeControl "40/5400+30:1800+30"]

1. e4 {[%emt 0:00:00]} e5 {[%emt 0:00:00]} 2. Nf3 {[%emt 0:00:00]} Nc6 {[%emt 0:00:00]} 3. Bc4 {[%emt 0:00:14]} Nf6 {[%emt 0:00:03]} 4. d3 {[%emt 0:00:17]} Bc5 {[%emt 0:00:07]} 5. O-O {[%emt 0:00:27]} d6 {[%emt 0:00:09]} 6. a4 {[%emt 0:02:22]} a5 7. Be3 {[%emt 0:00:30]} Bxe3 {[%emt 0:02:55]} 8. fxe3 {[%emt 0:00:07]} O-O {[%emt 0:01:05]} 9. Nbd2 {[%emt 0:02:29]} Be6 {[%emt 0:01:46]} 10. Bxe6 {[%emt 0:05:11]} fxe6 {[%emt 0:00:06]} 11. d4 {[%emt 0:00:37]} Qe8 {[%emt 0:10:24]} 12. c3 {[%emt 0:04:00]} Qg6 {[%emt 0:04:33]} 13. Qb3 {[%emt 0:07:49]} Nxe4 {[%emt 0:00:16]} 14. Nxe4 {[%emt 0:05:27]} Qxe4 {[%emt 0:00:06]} 15. Qxe6+ {[%emt 0:00:09]} Kh8 {[%emt 0:00:06]} 16. Rae1 {[%emt 0:01:01]} Rf6 {[%emt 0:09:53]} 17. Qd7 {[%emt 0:06:49]} Raf8 {[%emt 0:00:05]} 18. Qxc7 {[%emt 0:02:34]} g5 {[%emt 0:01:13]} 19. h3 {[%emt 0:02:49]} h5 {[%emt 0:17:36]} 20. Rf2 {[%emt 0:19:13]} g4 {[%emt 0:20:53]} 21. Ng5 {[%emt 0:07:08]} Qg6 {[%emt 0:00:07]} 22. Rxf6 {[%emt 0:00:05]} Rxf6 {[%emt 0:00:03]} 23. Qc8+ {[%emt 0:01:05]} Kg7 {[%emt 0:00:10]} 24. Qxb7+ {[%emt 0:01:34]} Kh6 25. Qxc6 {[%emt 0:03:43]} Kxg5 {[%emt 0:01:15]} 26. Qd7 {[%emt 0:14:05]} Kh4 {[%emt 0:05:30]} 27. dxe5 {[%emt 0:02:08]} dxe5 {[%emt 0:10:13]} 28. e4 {[%emt 0:00:06]} g3 {[%emt 0:12:15]} 29. Qd3 {[%emt 0:04:35]} Rd6 {[%emt 0:01:25]} 30. Qe3 {[%emt 0:00:42]} Qf6 {[%emt 0:01:52]} 31. Rf1 {[%emt 0:05:33]} Rd1 {[%emt 0:00:21]} 32. Qe2 {[%emt 0:00:43]} Qb6+ {[%emt 0:00:17]} 33. Kh1 {[%emt 0:00:04]} Rxf1+ {[%emt 0:01:09]} 34. Qxf1 {[%emt 0:00:04]} Qf2 {[%emt 0:00:04]} 35. Qb1 {[%emt 0:00:41]} Qd2 {[%emt 0:00:10]} 36. Qf1 {[%emt 0:02:55]} Qf2 {[%emt 0:00:03]} 37. Qc1 {[%emt 0:00:34]} Qxg2+ {[%emt 0:00:12]} 38. Kxg2 {[%emt 0:00:05]} 1/2-1/2

[Event "CZE Extraliga 2019-20"]
[Site "Czech Republic"]
[Date "2019.12.01"]
[Round "4.1"]
[White "Kempinski, Robert"]
[Black "Korobov, Anton"]
[Result "1/2-1/2"]
[ECO "D30"]
[WhiteElo "2579"]
[BlackElo "2679"]
[Annotator "ChessBase"]
[PlyCount "68"]
[EventDate "2019.09.15"]
[EventType "team-tourn"]
[EventCountry "CZE"]
[SourceTitle "playchess.com"]
[Source "ChessBase"]
[SourceQuality "1"]
[WhiteTeam "Poruba "]
[BlackTeam "Frydek-Mistek"]
[TimeControl "40/5400+30:1800+30"]

1. d4 {[%emt 0:00:00]} d5 {[%emt 0:00:00]} 2. c4 {[%emt 0:00:00]} e6 {[%emt 0:00:00]} 3. Nf3 {[%emt 0:00:51]} Nf6 {[%emt 0:00:00]} 4. e3 {[%emt 0:00:29]} a6 {[%emt 0:00:09]} 5. a3 {[%emt 0:03:01]} b6 {[%emt 0:02:56]} 6. b3 {[%emt 0:03:07]} Bb7 {[%emt 0:00:38]} 7. Bb2 {[%emt 0:00:08]} Nbd7 {[%emt 0:00:23]} 8. Nbd2 {[%emt 0:00:11]} Bd6 {[%emt 0:01:55]} 9. Be2 {[%emt 0:01:43]} O-O {[%emt 0:04:45]} 10. O-O {[%emt 0:00:25]} c5 {[%emt 0:04:30]} 11. dxc5 {[%emt 0:04:29]} bxc5 {[%emt 0:00:22]} 12. Qc2 {[%emt 0:00:19]} a5 {[%emt 0:03:04]} 13. Rfd1 {[%emt 0:02:10]} Qb6 {[%emt 0:08:06]} 14. Rab1 {[%emt 0:11:39]} h6 {[%emt 0:04:18]} 15. h3 {[%emt 0:00:26]} Rfe8 {[%emt 0:04:04]} 16. Bc3 {[%emt 0:04:00]} Rab8 {[%emt 0:01:23]} 17. Qb2 {[%emt 0:01:52]} Ba8 {[%emt 0:03:39]} 18. Qa1 {[%emt 0:00:25]} Qc7 {[%emt 0:03:35]} 19. Rbc1 {[%emt 0:02:06]} Qa7 {[%emt 0:05:58]} 20. Rb1 {[%emt 0:02:40]} Rbd8 {[%emt 0:04:40]} 21. Rbc1 {[%emt 0:01:30]} Bf8 {[%emt 0:02:37]} 22. Bf1 {[%emt 0:01:52]} Qb6 {[%emt 0:00:53]} 23. Rb1 {[%emt 0:01:01]} Ne4 {[%emt 0:04:09]} 24. Nxe4 {[%emt 0:02:55]} dxe4 {[%emt 0:00:57]} 25. Ne1 {[%emt 0:01:34]} Nb8 {[%emt 0:06:10]} 26. Qb2 {[%emt 0:01:29]} Nc6 {[%emt 0:00:47]} 27. Nc2 {[%emt 0:00:55]} Rxd1 {[%emt 0:01:53]} 28. Rxd1 {[%emt 0:00:23]} Rb8 {[%emt 0:00:05]} 29. Rb1 {[%emt 0:00:15]} Bb7 {[%emt 0:03:29]} 30. Be2 {[%emt 0:07:41]} Bc8 {[%emt 0:00:34]} 31. a4 {[%emt 0:03:11]} Bb7 {[%emt 0:05:49]} 32. Na3 {[%emt 0:00:55]} Rd8 {[%emt 0:00:27]} 33. Rd1 {[%emt 0:02:32]} Rxd1+ {[%emt 0:00:29]} 34. Bxd1 {[%emt 0:00:09]} Qd8 {[%emt 0:00:23]} 1/2-1/2

[Event "CZE Extraliga 2019-20"]
[Site "Czech Republic"]
[Date "2019.12.01"]
[Round "4.1"]
[White "Kociscak, Jiri"]
[Black "Markos, Jan"]
[Result "0-1"]
[ECO "E32"]
[WhiteElo "2499"]
[BlackElo "2572"]
[Annotator "ChessBase"]
[PlyCount "86"]
[EventDate "2019.09.15"]
[EventType "team-tourn"]
[EventCountry "CZE"]
[SourceTitle "playchess.com"]
[Source "ChessBase"]
[SourceQuality "1"]
[WhiteTeam "Ostrava"]
[BlackTeam "Kromeriz "]
[TimeControl "40/5400+30:1800+30"]

1. d4 {[%emt 0:01:31]} Nf6 {[%emt 0:00:04]} 2. c4 {[%emt 0:00:07]} e6 {[%emt 0:00:05]} 3. Nc3 {[%emt 0:03:42]} Bb4 {[%emt 0:00:08]} 4. Qc2 {[%emt 0:00:15]} O-O {[%emt 0:00:07]} 5. a3 {[%emt 0:00:05]} Bxc3+ {[%emt 0:00:06]} 6. Qxc3 {[%emt 0:00:04]} b6 {[%emt 0:00:07]} 7. Bg5 {[%emt 0:00:07]} Bb7 {[%emt 0:00:05]} 8. f3 {[%emt 0:00:09]} d6 {[%emt 0:00:06]} 9. e3 {[%emt 0:04:58]} Nbd7 {[%emt 0:00:20]} 10. Bd3 {[%emt 0:02:40]} c5 {[%emt 0:00:44]} 11. Ne2 {[%emt 0:01:57]} Rc8 {[%emt 0:00:30]} 12. O-O {[%emt 0:01:18]} h6 {[%emt 0:02:07]} 13. Bh4 {[%emt 0:00:06]} cxd4 {[%emt 0:01:30]} 14. exd4 {[%emt 0:02:36]} b5 {[%emt 0:14:15]} 15. b3 {[%emt 0:11:31]} Ba6 {[%emt 0:02:48]} 16. Qb4 {[%emt 0:01:17]} bxc4 {[%emt 0:00:10]} 17. Bxc4 {[%emt 0:00:05]} Bxc4 {[%emt 0:00:29]} 18. bxc4 {[%emt 0:00:04]} Rc6 {[%emt 0:28:35]} 19. Rfc1 {[%emt 0:07:57]} Qc7 {[%emt 0:03:13]} 20. Bg3 {[%emt 0:06:16]} Rb8 {[%emt 0:10:08]} 21. Qc3 {[%emt 0:01:13]} Rc8 {[%emt 0:07:10]} 22. c5 {[%emt 0:12:00]} Qd8 {[%emt 0:03:54]} 23. Bf2 {[%emt 0:00:49]} Nd5 {[%emt 0:03:51]} 24. Qd2 {[%emt 0:19:11]} dxc5 {[%emt 0:00:53]} 25. dxc5 {[%emt 0:00:04]} Nxc5 {[%emt 0:00:37]} 26. Rab1 {[%emt 0:01:01]} a6 {[%emt 0:09:34]} 27. Nd4 {[%emt 0:04:43]} R6c7 {[%emt 0:00:50]} 28. Bg3 {[%emt 0:01:16]} Rb7 {[%emt 0:03:11]} 29. Rxb7 {[%emt 0:03:08]} Nxb7 {[%emt 0:00:04]} 30. Nc6 {[%emt 0:00:19]} Qg5 {[%emt 0:02:28]} 31. f4 {[%emt 0:05:20]} Qf6 {[%emt 0:00:10]} 32. Bf2 {[%emt 0:03:21]} Nd6 {[%emt 0:01:20]} 33. Bd4 {[%emt 0:00:10]} Ne4 {[%emt 0:02:19]} 34. Qd3 {[%emt 0:02:11]} Qxf4 {[%emt 0:00:32]} 35. Rf1 {[%emt 0:03:45]} Qd2 {[%emt 0:00:58]} 36. Qxe4 {[%emt 0:01:12]} Rxc6 {[%emt 0:00:04]} 37. Qg4 {[%emt 0:00:04]} Qg5 {[%emt 0:00:15]} 38. Qf3 {[%emt 0:00:29]} Rc7 {[%emt 0:01:48]} 39. Qd3 {[%emt 0:00:39]} Nf4 {[%emt 0:01:27]} 40. Qe4 {[%emt 0:00:06]} Rc1 {[%emt 0:02:12]} 41. Rxc1 {[%emt 0:31:04]} Nh3+ {[%emt 0:01:04]} 42. Kf1 {[%emt 0:00:00]} Qxc1+ {[%emt 0:00:05]} 43. Ke2 {[%emt 0:00:00]} Nf4+ {[%emt 0:00:44]} 0-1

[Event "CZE Extraliga 2019-20"]
[Site "Czech Republic"]
[Date "2019.12.02"]
[Round "4.2"]
[White "Laznicka, Viktor"]
[Black "Balogh, Csaba"]
[Result "1/2-1/2"]
[ECO "A22"]
[WhiteElo "2667"]
[BlackElo "2591"]
[Annotator "ChessBase"]
[PlyCount "37"]
[EventDate "2019.09.15"]
[EventType "team-tourn"]
[EventCountry "CZE"]
[SourceTitle "playchess.com"]
[Source "ChessBase"]
[SourceQuality "1"]
[WhiteTeam "Novoborsky"]
[BlackTeam "Brno"]
[WhiteTeamCountry "CZE"]
[BlackTeamCountry "HUN"]
[TimeControl "40/5400+30:1800+30"]

1. c4 {[%emt 0:00:00]} e5 {[%emt 0:00:03]} 2. Nc3 {[%emt 0:00:00]} Nf6 {[%emt 0:00:28]} 3. g3 {[%emt 0:00:00]} Bb4 {[%emt 0:01:52]} 4. e4 {[%emt 0:00:32]} Bxc3 {[%emt 0:03:22]} 5. dxc3 {[%emt 0:00:08]} d6 {[%emt 0:00:18]} 6. Qc2 {[%emt 0:00:51]} a5 {[%emt 0:02:08]} 7. a4 {[%emt 0:01:34]} Na6 {[%emt 0:01:57]} 8. Be3 {[%emt 0:07:27]} O-O {[%emt 0:02:44]} 9. h3 {[%emt 0:01:54]} Ne8 {[%emt 0:13:39]} 10. g4 {[%emt 0:01:02]} Nc5 {[%emt 0:05:41]} 11. Nf3 {[%emt 0:06:20]} b6 {[%emt 0:01:14]} 12. Nd2 {[%emt 0:02:09]} Bb7 {[%emt 0:01:14]} 13. f3 {[%emt 0:00:35]} Nf6 {[%emt 0:02:45]} 14. h4 {[%emt 0:02:08]} Ne6 {[%emt 0:06:05]} 15. Nb3 {[%emt 0:06:15]} Nd7 {[%emt 0:08:39]} 16. Rd1 {[%emt 0:06:53]} Ndc5 {[%emt 0:01:10]} 17. Nc1 {[%emt 0:03:44]} Qf6 {[%emt 0:04:43]} 18. Rh3 {[%emt 0:04:19]} Nf4 {[%emt 0:01:22]} 19. Rh2 {[%emt 0:02:09]} 1/2-1/2

[Event "CZE Extraliga 2019-20"]
[Site "Czech Republic"]
[Date "2019.12.01"]
[Round "4.2"]
[White "Azarov, Sergei"]
[Black "Nasuta, Grzegorz"]
[Result "1/2-1/2"]
[ECO "C07"]
[WhiteElo "2586"]
[BlackElo "2540"]
[Annotator "ChessBase"]
[PlyCount "44"]
[EventDate "2019.09.15"]
[EventType "team-tourn"]
[EventCountry "CZE"]
[SourceTitle "playchess.com"]
[Source "ChessBase"]
[SourceQuality "1"]
[WhiteTeam " Frydek-Mistek"]
[BlackTeam "Poruba"]
[TimeControl "40/5400+30:1800+30"]

1. e4 {[%emt 0:00:00]} e6 {[%emt 0:00:00]} 2. d4 {[%emt 0:00:02]} d5 {[%emt 0:00:00]} 3. Nd2 {[%emt 0:00:28]} c5 {[%emt 0:00:00]} 4. Ngf3 {[%emt 0:01:23]} cxd4 {[%emt 0:00:21]} 5. Nxd4 {[%emt 0:00:32]} Nf6 {[%emt 0:00:09]} 6. exd5 Qxd5 {[%emt 0:00:23]} 7. Nb5 {[%emt 0:03:50]} Na6 {[%emt 0:00:59]} 8. Nc3 {[%emt 0:01:45]} Qd6 {[%emt 0:00:15]} 9. Qe2 {[%emt 0:10:56]} Be7 {[%emt 0:01:10]} 10. g3 {[%emt 0:06:05]} Nb4 {[%emt 0:13:55]} 11. Nf3 {[%emt 0:07:15]} O-O {[%emt 0:40:20]} 12. a3 {[%emt 0:01:22]} Nbd5 {[%emt 0:00:26]} 13. Nxd5 {[%emt 0:06:10]} exd5 {[%emt 0:11:04]} 14. Bg2 {[%emt 0:01:35]} Re8 {[%emt 0:00:07]} 15. O-O {[%emt 0:00:58]} Bf5 {[%emt 0:00:05]} 16. Be3 {[%emt 0:07:33]} Qd7 {[%emt 0:06:26]} 17. Bd4 {[%emt 0:11:43]} Qc7 {[%emt 0:06:03]} 18. Nh4 {[%emt 0:20:11]} Bc5 {[%emt 0:11:25]} 19. Qb5 {[%emt 0:01:53]} Bxd4 {[%emt 0:00:01]} 20. Nxf5 {[%emt 0:00:08]} Bb6 {[%emt 0:00:09]} 21. c3 {[%emt 0:02:00]} Qe5 {[%emt 0:00:54]} 22. Nd4 {[%emt 0:01:23]} Bxd4 {[%emt 0:02:01]} 1/2-1/2

[Event "CZE Extraliga 2019-20"]
[Site "Czech Republic"]
[Date "2019.12.01"]
[Round "4.2"]
[White "LYS5 Plat Vojtech GM"]
[Black "DUR5 Ponizil Cyril IM"]
[Result "1/2-1/2"]
[ECO "A46"]
[WhiteElo "2576"]
[BlackElo "2504"]
[Annotator "RC"]
[PlyCount "23"]
[EventDate "2019.09.15"]
[EventType "team-tourn"]
[EventCountry "CZE"]
[SourceTitle "playchess.com"]
[Source "ChessBase"]
[SourceQuality "1"]
[TimeControl "40/5400+30:1800+30"]

1. d4 {[%emt 0:00:00]} Nf6 {[%emt 0:00:00]} 2. Nf3 {[%emt 0:00:00]} e6 {[%emt 0:00:00]} 3. Bf4 {[%emt 0:00:00]} d5 {[%emt 0:00:00]} 4. e3 {[%emt 0:00:48]} Bd6 {[%emt 0:00:00]} 5. Bg3 {[%emt 0:01:28]} O-O {[%emt 0:00:00]} 6. Bd3 {[%emt 0:00:03]} b6 {[%emt 0:00:17]} 7. Nbd2 {[%emt 0:00:22]} c5 {[%emt 0:02:27]} 8. c3 {[%emt 0:00:04]} Ba6 {[%emt 0:01:22]} 9. Bxa6 {[%emt 0:00:44]} Nxa6 {[%emt 0:00:04]} 10. Bh4 {[%emt 0:00:16]} Nb8 {[%emt 0:02:01]} 11. O-O {[%emt 0:08:03]} Nbd7 {[%emt 0:00:43]} 12. Rc1 {[%emt 0:02:02]} 1/2-1/2

[Event "CZE Extraliga 2019-20"]
[Site "Czech Republic"]
[Date "2019.12.01"]
[Round "4.2"]
[White "Gazik, Viktor"]
[Black "Jakubiec, Artur"]
[Result "1-0"]
[ECO "A85"]
[WhiteElo "2537"]
[BlackElo "2472"]
[Annotator "ChessBase"]
[PlyCount "79"]
[EventDate "2019.09.15"]
[EventType "team-tourn"]
[EventCountry "CZE"]
[SourceTitle "playchess.com"]
[Source "ChessBase"]
[SourceQuality "1"]
[WhiteTeam "Kromeriz"]
[BlackTeam " Ostrava"]
[TimeControl "40/5400+30:1800+30"]

1. d4 {[%emt 0:00:00]} f5 {[%emt 0:00:38]} 2. c4 {[%emt 0:00:46]} Nf6 {[%emt 0:00:06]} 3. Nc3 {[%emt 0:00:05]} d6 {[%emt 0:00:04]} 4. Nf3 {[%emt 0:05:49]} g6 {[%emt 0:00:27]} 5. g3 {[%emt 0:00:04]} Bg7 {[%emt 0:00:08]} 6. Bg2 {[%emt 0:00:05]} O-O {[%emt 0:00:08]} 7. O-O {[%emt 0:00:04]} Qe8 {[%emt 0:04:35]} 8. d5 {[%emt 0:10:07]} a5 {[%emt 0:00:35]} 9. Nd4 {[%emt 0:07:46]} Na6 {[%emt 0:00:09]} 10. b3 {[%emt 0:10:19]} Bd7 {[%emt 0:02:24]} 11. Qd2 {[%emt 0:03:59]} c5 {[%emt 0:14:28]} 12. Ndb5 {[%emt 0:05:11]} h6 {[%emt 0:08:55]} 13. Bb2 {[%emt 0:04:06]} g5 {[%emt 0:00:16]} 14. f4 {[%emt 0:01:28]} gxf4 {[%emt 0:05:31]} 15. gxf4 {[%emt 0:11:28]} Kh8 {[%emt 0:01:41]} 16. Kh1 {[%emt 0:05:33]} Rg8 {[%emt 0:04:42]} 17. Bf3 {[%emt 0:01:13]} Ng4 {[%emt 0:08:28]} 18. Bxg4 {[%emt 0:16:57]} fxg4 {[%emt 0:00:17]} 19. Ne4 {[%emt 0:00:26]} Qg6 {[%emt 0:12:15]} 20. Ng3 {[%emt 0:02:27]} Bxb5 {[%emt 0:03:10]} 21. cxb5 {[%emt 0:00:08]} Nc7 {[%emt 0:00:13]} 22. a4 {[%emt 0:05:50]} Bxb2 {[%emt 0:08:50]} 23. Qxb2+ {[%emt 0:00:02]} Kh7 {[%emt 0:00:08]} 24. e4 {[%emt 0:00:43]} Raf8 {[%emt 0:00:12]} 25. Rae1 {[%emt 0:02:20]} Rg7 {[%emt 0:01:16]} 26. f5 {[%emt 0:03:35]} Qg5 {[%emt 0:03:18]} 27. Ne2 {[%emt 0:00:05]} Rf6 {[%emt 0:05:14]} 28. Nf4 {[%emt 0:00:47]} Rg8 {[%emt 0:07:36]} 29. Re2 {[%emt 0:02:26]} Na8 {[%emt 0:00:44]} 30. Qc3 {[%emt 0:00:27]} Nb6 {[%emt 0:00:55]} 31. Qxa5 {[%emt 0:00:08]} Nd7 {[%emt 0:00:06]} 32. Ne6 {[%emt 0:00:46]} Qh5 {[%emt 0:03:35]} 33. Qc7 {[%emt 0:00:01]} Ne5 {[%emt 0:02:15]} 34. Qxe7+ {[%emt 0:00:11]} Rf7 {[%emt 0:00:04]} 35. Qxd6 {[%emt 0:00:08]} g3 {[%emt 0:01:08]} 36. Nf4 {[%emt 0:01:00]} Qxe2 {[%emt 0:01:53]} 37. Nxe2 {[%emt 0:00:01]} g2+ {[%emt 0:00:01]} 38. Kg1 {[%emt 0:00:09]} gxf1=Q+ {[%emt 0:00:10]} 39. Kxf1 {[%emt 0:00:02]} Nd3 {[%emt 0:00:50]} 40. Nf4 {[%emt 0:02:05]} 1-0

[Event "CZE Extraliga 2019-20"]
[Site "Czech Republic"]
[Date "2019.12.01"]
[Round "4.2"]
[White "Cernousek, Lukas"]
[Black "Hracek, Zbynek"]
[Result "1/2-1/2"]
[ECO "E32"]
[WhiteElo "2458"]
[BlackElo "2572"]
[Annotator "ChessBase"]
[PlyCount "45"]
[EventDate "2019.09.15"]
[EventType "team-tourn"]
[EventCountry "CZE"]
[SourceTitle "playchess.com"]
[Source "ChessBase"]
[SourceQuality "1"]
[WhiteTeam "Siesta Solution Unichess "]
[BlackTeam "Pardubice "]
[TimeControl "40/5400+30:1800+30"]

1. d4 {[%emt 0:00:00]} Nf6 {[%emt 0:00:00]} 2. c4 {[%emt 0:00:00]} e6 {[%emt 0:00:00]} 3. Nc3 {[%emt 0:00:00]} Bb4 {[%emt 0:00:00]} 4. Qc2 {[%emt 0:00:00]} d5 {[%emt 0:04:37]} 5. cxd5 {[%emt 0:00:00]} exd5 {[%emt 0:00:16]} 6. Bg5 {[%emt 0:00:01]} h6 {[%emt 0:04:54]} 7. Bh4 {[%emt 0:00:06]} c5 {[%emt 0:03:32]} 8. dxc5 {[%emt 0:00:07]} Be6 {[%emt 0:00:46]} 9. e3 {[%emt 0:02:06]} Nbd7 {[%emt 0:00:15]} 10. a3 {[%emt 0:08:31]} Bxc5 {[%emt 0:04:08]} 11. Bd3 {[%emt 0:00:38]} Rc8 {[%emt 0:04:47]} 12. Nge2 {[%emt 0:00:26]} O-O {[%emt 0:03:05]} 13. O-O {[%emt 0:00:33]} Be7 {[%emt 0:16:12]} 14. Nd4 {[%emt 0:00:30]} Nc5 {[%emt 0:08:42]} 15. Nf5 {[%emt 0:07:17]} Nxd3 {[%emt 0:01:44]} 16. Qxd3 {[%emt 0:27:44]} Bxf5 {[%emt 0:01:20]} 17. Qxf5 {[%emt 0:01:10]} Qd6 {[%emt 0:00:03]} 18. Rfd1 {[%emt 0:09:46]} Qe6 {[%emt 0:00:48]} 19. Qf3 {[%emt 0:00:09]} Rfd8 {[%emt 0:05:36]} 20. Rd4 {[%emt 0:03:13]} g5 {[%emt 0:06:11]} 21. Bg3 {[%emt 0:00:13]} Bc5 {[%emt 0:00:27]} 22. Rd3 {[%emt 0:08:25]} Ne4 {[%emt 0:06:22]} 23. Rad1 {[%emt 0:14:28]} 1/2-1/2

[Event "CZE Extraliga 2019-20"]
[Site "Czech Republic"]
[Date "2019.12.01"]
[Round "4.2"]
[White "Pulpan, Jakub"]
[Black "Ftacnik, Lubomir"]
[Result "1/2-1/2"]
[ECO "A05"]
[WhiteElo "2421"]
[BlackElo "2520"]
[Annotator "ChessBase"]
[PlyCount "62"]
[EventDate "2019.09.15"]
[EventType "team-tourn"]
[EventCountry "CZE"]
[SourceTitle "playchess.com"]
[Source "ChessBase"]
[SourceQuality "1"]
[WhiteTeam "Praha"]
[BlackTeam "Turnov "]
[TimeControl "40/5400+30:1800+30"]

1. Nf3 {[%emt 0:00:05]} Nf6 {[%emt 0:00:00]} 2. b3 {[%emt 0:00:11]} c5 {[%emt 0:01:03]} 3. Bb2 {[%emt 0:00:32]} Nc6 {[%emt 0:00:24]} 4. e3 {[%emt 0:03:44]} g6 {[%emt 0:00:24]} 5. c4 {[%emt 0:01:57]} Bg7 {[%emt 0:00:18]} 6. Be2 {[%emt 0:03:08]} O-O {[%emt 0:00:18]} 7. O-O {[%emt 0:00:47]} d5 {[%emt 0:05:34]} 8. cxd5 {[%emt 0:00:14]} Qxd5 {[%emt 0:00:15]} 9. Nc3 {[%emt 0:01:01]} Qf5 {[%emt 0:00:34]} 10. Qb1 {[%emt 0:05:20]} Rd8 {[%emt 0:02:53]} 11. Qxf5 {[%emt 0:06:32]} Bxf5 {[%emt 0:00:36]} 12. Na4 {[%emt 0:01:45]} b6 {[%emt 0:03:12]} 13. d4 {[%emt 0:06:57]} cxd4 {[%emt 0:06:35]} 14. Nxd4 {[%emt 0:01:32]} Nxd4 {[%emt 0:06:05]} 15. Bxd4 {[%emt 0:00:11]} Nd5 {[%emt 0:20:38]} 16. Bxg7 {[%emt 0:15:06]} Kxg7 {[%emt 0:00:04]} 17. Bf3 {[%emt 0:14:44]} Be6 {[%emt 0:00:12]} 18. Rac1 {[%emt 0:14:31]} Rac8 {[%emt 0:01:31]} 19. Rxc8 {[%emt 0:02:00]} Rxc8 {[%emt 0:00:31]} 20. Bxd5 {[%emt 0:00:47]} Bxd5 {[%emt 0:00:10]} 21. f3 {[%emt 0:00:52]} f5 {[%emt 0:17:35]} 22. Rd1 {[%emt 0:01:19]} Be6 {[%emt 0:01:29]} 23. Rd2 {[%emt 0:00:11]} g5 {[%emt 0:04:24]} 24. Kf2 {[%emt 0:01:36]} Kf6 {[%emt 0:03:11]} 25. Nb2 {[%emt 0:02:23]} Rc3 {[%emt 0:06:28]} 26. Nd3 {[%emt 0:00:35]} a5 {[%emt 0:00:45]} 27. Ne1 {[%emt 0:01:23]} a4 {[%emt 0:11:22]} 28. bxa4 {[%emt 0:00:43]} Ra3 {[%emt 0:00:07]} 29. Rb2 {[%emt 0:07:33]} Rxa4 {[%emt 0:04:05]} 30. Rxb6 {[%emt 0:00:23]} Rxa2+ {[%emt 0:00:02]} 31. Kf1 {[%emt 0:00:16]} Kf7 {[%emt 0:00:58]} 1/2-1/2

[Event "CZE Extraliga 2019-20"]
[Site "Czech Republic"]
[Date "2019.12.03"]
[Round "4.3"]
[White "Stocek, Jiri"]
[Black "Anton Guijarro, David"]
[Result "0-1"]
[ECO "D43"]
[WhiteElo "2570"]
[BlackElo "2686"]
[Annotator "ChessBase"]
[PlyCount "110"]
[EventDate "2019.09.15"]
[EventType "team-tourn"]
[EventCountry "CZE"]
[SourceTitle "playchess.com"]
[Source "ChessBase"]
[SourceQuality "1"]
[WhiteTeam "Brno"]
[BlackTeam "Novoborsky"]
[WhiteTeamCountry "CZE"]
[BlackTeamCountry "ESP"]
[TimeControl "40/5400+30:1800+30"]

1. d4 {[%emt 0:00:07]} Nf6 {[%emt 0:00:19]} 2. Nf3 {[%emt 0:01:12]} d5 {[%emt 0:00:51]} 3. c4 {[%emt 0:01:20]} e6 {[%emt 0:01:25]} 4. Nc3 {[%emt 0:01:23]} c6 {[%emt 0:01:37]} 5. Qd3 {[%emt 0:06:36]} dxc4 {[%emt 0:13:44]} 6. Qxc4 {[%emt 0:00:49]} b5 {[%emt 0:00:14]} 7. Qd3 {[%emt 0:00:47]} Bb7 {[%emt 0:03:19]} 8. e4 {[%emt 0:02:21]} b4 {[%emt 0:00:48]} 9. Na4 {[%emt 0:00:16]} Qa5 {[%emt 0:01:34]} 10. b3 {[%emt 0:00:29]} c5 {[%emt 0:01:10]} 11. e5 {[%emt 0:05:21]} Ba6 {[%emt 0:04:05]} 12. Qc2 {[%emt 0:03:33]} Bxf1 {[%emt 0:02:49]} 13. Rxf1 {[%emt 0:07:44]} Nd5 {[%emt 0:01:43]} 14. Bd2 {[%emt 0:05:35]} Nd7 {[%emt 0:07:12]} 15. Rc1 {[%emt 0:04:40]} Rc8 {[%emt 0:04:07]} 16. Ng5 {[%emt 0:13:23]} N5b6 {[%emt 0:11:18]} 17. Nxb6 {[%emt 0:02:14]} Nxb6 {[%emt 0:02:46]} 18. Qd3 {[%emt 0:09:53]} Be7 {[%emt 0:03:31]} 19. Ke2 {[%emt 0:03:38]} Rd8 {[%emt 0:05:54]} 20. a3 {[%emt 0:08:44]} cxd4 {[%emt 0:07:56]} 21. f4 {[%emt 0:01:25]} Nd5 {[%emt 0:02:55]} 22. axb4 {[%emt 0:00:55]} Bxb4 {[%emt 0:01:57]} 23. Ra1 {[%emt 0:02:24]} Qb6 {[%emt 0:02:22]} 24. Qa6 {[%emt 0:10:20]} d3+ {[%emt 0:04:34]} 25. Kd1 {[%emt 0:00:10]} Qxa6 {[%emt 0:08:25]} 26. Rxa6 {[%emt 0:00:07]} Rb8 {[%emt 0:00:39]} 27. f5 {[%emt 0:02:41]} exf5 {[%emt 0:00:41]} 28. e6 {[%emt 0:01:28]} f6 {[%emt 0:00:51]} 29. Nf7 {[%emt 0:00:33]} O-O {[%emt 0:01:21]} 30. Rxf5 {[%emt 0:00:39]} Nc7 {[%emt 0:01:06]} 31. Rc6 {[%emt 0:04:43]} Nxe6 {[%emt 0:04:17]} 32. Nh6+ {[%emt 0:00:30]} gxh6 {[%emt 0:00:30]} 33. Rxe6 {[%emt 0:00:30]} Kg7 {[%emt 0:00:30]} 34. Rd5 {[%emt 0:00:30]} Bxd2 {[%emt 0:00:30]} 35. Kxd2 {[%emt 0:00:30]} Rxb3 {[%emt 0:00:30]} 36. Ra6 {[%emt 0:00:30]} Rf7 {[%emt 0:00:30]} 37. Ra2 {[%emt 0:00:30]} Rfb7 {[%emt 0:00:30]} 38. Rda5 {[%emt 0:00:30]} Kg6 {[%emt 0:00:30]} 39. h4 {[%emt 0:00:30]} h5 {[%emt 0:00:30]} 40. Rxa7 {[%emt 0:00:30]} Rxa7 {[%emt 0:00:30]} 41. Rxa7 {[%emt 0:30:30]} Rb2+ {[%emt 0:30:30]} 42. Kxd3 {[%emt 0:00:30]} Rxg2 {[%emt 0:00:30]} 43. Ra1 {[%emt 0:00:30]} Rg4 {[%emt 0:00:30]} 44. Rh1 {[%emt 0:00:30]} Kf5 {[%emt 0:00:30]} 45. Ke2 {[%emt 0:00:30]} Ra4 {[%emt 0:00:30]} 46. Rf1+ {[%emt 0:00:30]} Rf4 {[%emt 0:00:30]} 47. Rh1 {[%emt 0:00:30]} Kg4 {[%emt 0:00:30]} 48. Rg1+ {[%emt 0:00:30]} Kxh4 {[%emt 0:00:30]} 49. Rg7 {[%emt 0:00:30]} Kh3 {[%emt 0:00:30]} 50. Rxh7 {[%emt 0:00:30]} h4 {[%emt 0:00:30]} 51. Rg7 {[%emt 0:00:30]} Kh2 {[%emt 0:00:30]} 52. Ke3 {[%emt 0:00:30]} Rf5 {[%emt 0:00:30]} 53. Ke4 {[%emt 0:00:30]} Rf1 {[%emt 0:00:30]} 54. Rg6 {[%emt 0:00:30]} h3 {[%emt 0:00:30]} 55. Ke3 {[%emt 0:00:30]} Kh1 {[%emt 0:00:30]} 0-1